fUSD/lending_fUSD_20250515
["ID","MTS","AMOUNT","RATE_DAILY","PERIOD"]
[361139356,1747301574032,541.87,0.00011912,2]
[361139357,1747301574426,400.0,0.00011376,2]
[361139358,1747301574471,794.98,0.00011364,2]
[361139359,1747301574683,279.35582792,0.0001165,2]
[361139360,1747301574720,794.98,0.00011638,2]
[361139361,1747301575039,400.0,0.00011636,2]
[361139362,1747301575428,794.98,0.00011912,2]
[361139363,1747301575468,400.0,0.0001191,2]
[361139364,1747301577484,400.0,0.00011636,2]
[361139365,1747301577748,400.0,0.0001191,2]
[361139366,1747301578474,405.63586154,0.00011376,2]
[361139367,1747301579592,400.0,0.00011364,2]
[361139368,1747301579804,400.0,0.00011381,2]
[361139369,1747301579844,400.0,0.00011638,2]
[361139370,1747301580060,400.0,0.00011655,2]
[361139371,1747301580097,400.0,0.00011912,2]
[361139372,1747301580308,400.0,0.00011929,2]
[361139373,1747301580429,400.0,0.00011376,2]
[361139374,1747301580663,400.0,0.0001165,2]
[361139375,1747301580899,400.0,0.00011924,2]
[361139376,1747301581378,365.5553537,0.00011636,2]
[361139377,1747301581543,416.00034246,0.00011364,2]
[361139378,1747301581591,400.0,0.00011636,2]
[361139379,1747301581723,920.24,0.00011364,2]
[361139380,1747301581840,308.52507623,0.0001191,2]
[361139381,1747301581965,920.24,0.00011638,2]
[361139382,1747301582209,920.24,0.00011912,2]
[361139383,1747301582660,561.1,0.00011364,2]
[361139384,1747301582756,400.0,0.00011636,2]
[361139385,1747301583026,400.0,0.0001191,2]
[361139386,1747301583078,1204.41,0.00011363,2]
[361139387,1747301583287,561.1,0.00011638,2]
[361139388,1747301583370,1204.41,0.00011637,2]
[361139389,1747301583546,561.1,0.00011912,2]
[361139390,1747301583639,1204.41,0.00011911,2]
[361139391,1747301586049,400.0,0.00011364,2]
[361139392,1747301586247,400.0,0.00011638,2]
[361139393,1747301586484,558.76,0.00011364,2]
[361139394,1747301586551,400.0,0.00011912,2]
[361139395,1747301586747,558.76,0.00011638,2]
[361139396,1747301586964,493.4,0.00011381,2]
[361139397,1747301587025,558.76,0.00011912,2]
[361139398,1747301587211,493.4,0.00011655,2]
[361139399,1747301587427,400.0,0.00011376,2]
[361139400,1747301587473,493.4,0.00011929,2]
[361139401,1747301587634,400.0,0.00011636,2]
[361139402,1747301587698,493.25873634,0.0001165,2]
[361139403,1747301587747,400.0,0.00011636,2]
[361139404,1747301588134,400.0,0.0001191,2]
[361139405,1747301588199,214.17011217,0.0001191,2]
[361139406,1747301590041,400.0,0.00011376,2]
[361139407,1747301590285,489.56611425,0.0001165,2]
[361139408,1747301590563,400.0,0.00011364,2]
[361139409,1747301590792,400.0,0.00011638,2]
[361139410,1747301591072,876.57,0.00011364,2]
[361139411,1747301591112,400.0,0.00011912,2]
[361139412,1747301591336,876.57,0.00011638,2]
[361139413,1747301591583,876.57,0.00011912,2]
[361139414,1747301593593,400.0,0.00011636,2]
[361139415,1747301593834,400.0,0.0001191,2]
[361139416,1747301594057,400.0,0.00011376,2]
[361139417,1747301594297,400.0,0.00011999,2]
[361139418,1747301594342,400.0,0.0001165,2]
[361139419,1747301594856,529.69,0.00011363,2]
[361139420,1747301595081,529.69,0.00011637,2]
[361139421,1747301595977,529.69,0.00011911,2]
[361139422,1747301596327,1325.08,0.00011381,2]
[361139423,1747301596363,500.0,0.00011904,2]
[361139424,1747301596419,1325.08,0.00011655,2]
[361139425,1747301596462,400.0,0.00011364,2]
[361139426,1747301596525,400.0,0.00011638,2]
[361139427,1747301596560,1325.08,0.00011929,2]
[361139428,1747301596602,4615.98,0.00011364,2]
[361139429,1747301596643,400.0,0.00011912,2]
[361139430,1747301596709,4615.98,0.00011638,2]
[361139431,1747301596820,4615.98,0.00011912,2]
[361139432,1747301597743,400.0,0.00011364,2]
[361139433,1747301598069,400.0,0.00011638,2]
[361139434,1747301598478,400.0,0.00011912,2]
[361139435,1747301598866,400.0,0.00011636,2]
[361139436,1747301599147,400.0,0.0001191,2]
[361139437,1747301599347,250.0,0.0001147,2]
[361139438,1747301599784,400.0,0.00011364,2]
[361139439,1747301599901,752.52,0.00011363,2]
[361139440,1747301600029,400.0,0.00011638,2]
[361139441,1747301600145,752.52,0.00011637,2]
[361139442,1747301600292,400.0,0.00011912,2]
[361139443,1747301600391,752.52,0.00011911,2]
[361139444,1747301600945,400.0,0.00011376,2]
[361139445,1747301601202,200.0,0.00011904,2]
[361139446,1747301601847,842.53,0.00011364,2]
[361139447,1747301602091,842.53,0.00011638,2]
[361139448,1747301602546,842.53,0.00011912,2]
[361139449,1747301603303,2307.29,0.00011999,2]
[361139450,1747301605541,574.65,0.00011364,2]
[361139451,1747301605777,574.65,0.00011638,2]
[361139452,1747301606020,574.65,0.00011912,2]
[361139453,1747301607891,1017.92,0.00011423,2]
[361139454,1747301609641,2365.83,0.00011364,2]
[361139455,1747301609887,2365.83,0.00011638,2]
[361139456,1747301610231,2365.83,0.00011912,2]
[361139457,1747301610428,400.0,0.00011363,2]
[361139458,1747301610673,400.0,0.00011637,2]
[361139459,1747301610800,400.0,0.00011636,2]
[361139460,1747301611028,400.0,0.00011911,2]
[361139461,1747301611063,400.0,0.0001191,2]
[361139462,1747301611322,4267.61,0.00011364,2]
[361139463,1747301611561,4267.61,0.00011638,2]
[361139464,1747301611823,4267.61,0.00011912,2]
[361139465,1747301612307,400.0,0.00011381,2]
[361139466,1747301612551,400.0,0.00011655,2]
[361139467,1747301612799,400.0,0.00011929,2]
[361139468,1747301612876,400.0,0.00011636,2]
[361139469,1747301614328,578.35,0.00011364,2]
[361139470,1747301614623,578.35,0.00011638,2]
[361139471,1747301614880,578.35,0.00011912,2]
[361139472,1747301615209,5000.0,0.000119,2]
[361139473,1747301615399,400.0,0.0001191,2]
[361139474,1747301615485,195.34701518,0.00011363,2]
[361139475,1747301616977,509.10430043,0.00011636,2]
[361139476,1747301618119,400.0,0.00011636,2]
[361139477,1747301618230,837.09,0.00011363,2]
[361139478,1747301618358,400.0,0.0001191,2]
[361139479,1747301618497,837.09,0.00011637,2]
[361139480,1747301618838,837.09,0.00011911,2]
[361139481,1747301619132,400.0,0.00011363,2]
[361139482,1747301619273,477.42,0.00011364,2]
[361139483,1747301619371,400.0,0.00011637,2]
[361139484,1747301619406,575.79,0.00011381,2]
[361139485,1747301619447,1492.92,0.00011364,2]
[361139486,1747301619524,477.42,0.00011638,2]
[361139487,1747301619612,400.0,0.00011911,2]
[361139488,1747301619654,575.79,0.00011655,2]
[361139489,1747301619690,1492.92,0.00011638,2]
[361139490,1747301619771,477.42,0.00011912,2]
[361139491,1747301619898,575.79,0.00011929,2]
[361139492,1747301619933,1492.92,0.00011912,2]
[361139493,1747301621530,400.0,0.00011636,2]
[361139494,1747301621772,400.0,0.0001191,2]
[361139495,1747301622571,435.6,0.00011364,2]
[361139496,1747301622858,435.6,0.00011638,2]
[361139497,1747301623139,435.6,0.00011912,2]
[361139498,1747301623488,400.0,0.00011364,2]
[361139499,1747301623742,400.0,0.00011638,2]
[361139500,1747301623780,1530.97,0.00011363,2]
[361139501,1747301623991,1530.97,0.00011637,2]
[361139502,1747301624027,400.0,0.00011912,2]
[361139503,1747301624261,1530.97,0.00011911,2]
[361139504,1747301624608,2913.54,0.00011999,2]
[361139505,1747301626335,400.0,0.00011636,2]
[361139506,1747301626583,400.0,0.0001191,2]
[361139507,1747301627306,400.0,0.00011381,2]
[361139508,1747301627393,400.0,0.00011655,2]
[361139509,1747301627448,2891.0,0.00011364,2]
[361139510,1747301627669,400.0,0.00011929,2]
[361139511,1747301627708,2891.0,0.00011638,2]
[361139512,1747301627914,2891.0,0.00011912,2]
[361139513,1747301629449,1245.2,0.00011364,2]
[361139514,1747301629487,400.0,0.00011636,2]
[361139515,1747301629691,1245.2,0.00011638,2]
[361139516,1747301629727,400.0,0.0001191,2]
[361139517,1747301629945,1245.2,0.00011912,2]
[361139518,1747301630455,400.0,0.00011364,2]
[361139519,1747301630574,400.0,0.00011636,2]
[361139520,1747301630738,400.0,0.00011638,2]
[361139521,1747301630822,400.0,0.0001191,2]
[361139522,1747301630993,400.0,0.00011912,2]
[361139523,1747301632844,619.86,0.00011363,2]
[361139524,1747301633087,619.86,0.00011637,2]
[361139525,1747301633351,619.86,0.00011911,2]
[361139526,1747301634177,781.61,0.00011364,2]
[361139527,1747301634450,781.61,0.00011638,2]
[361139528,1747301634853,781.61,0.00011912,2]
[361139529,1747301635788,400.0,0.00011636,2]
[361139530,1747301636165,400.0,0.0001191,2]
[361139531,1747301637951,2652.5637767,0.00011939,2]
[361139532,1747301638330,784.64,0.00011364,2]
[361139533,1747301638581,784.64,0.00011638,2]
[361139534,1747301639153,784.64,0.00011912,2]
[361139535,1747301639582,495.52,0.00011381,2]
[361139536,1747301640166,495.52,0.00011655,2]
[361139537,1747301640422,495.52,0.00011929,2]
[361139538,1747301640464,875.41,0.00011363,2]
[361139539,1747301640720,875.41,0.00011637,2]
[361139540,1747301640967,875.41,0.00011911,2]
[361139541,1747301644606,509.06,0.00011364,2]
[361139542,1747301644860,509.06,0.00011638,2]
[361139543,1747301645183,509.06,0.00011912,2]
[361139544,1747301645501,400.0,0.00011636,2]
[361139545,1747301645807,464.43,0.0001191,2]
[361139546,1747301646126,400.0,0.00011636,2]
[361139547,1747301646502,400.0,0.0001191,2]
[361139548,1747301647324,8043.94,0.00011364,2]
[361139549,1747301647863,527.66,0.00011636,2]
[361139550,1747301648009,527.66,0.0001191,2]
[361139551,1747301648081,8043.94,0.00011638,2]
[361139552,1747301648192,8043.94,0.00011912,2]
[361139553,1747301649684,400.0,0.00011636,2]
[361139554,1747301649804,440.58,0.00011636,2]
[361139555,1747301649962,400.0,0.0001191,2]
[361139556,1747301650036,440.58,0.0001191,2]
[361139557,1747301650256,945.34,0.00011363,2]
[361139558,1747301650503,945.34,0.00011637,2]
[361139559,1747301650765,945.34,0.00011911,2]
[361139560,1747301652464,2306.42,0.00011364,2]
[361139561,1747301652585,2303.75,0.00011381,2]
[361139562,1747301652710,2306.42,0.00011638,2]
[361139563,1747301652880,2303.75,0.00011655,2]
[361139564,1747301652937,2306.42,0.00011912,2]
[361139565,1747301653106,2303.75,0.00011929,2]
[361139566,1747301653653,400.0,0.00011364,2]
[361139567,1747301654213,400.0,0.00011638,2]
[361139568,1747301654477,400.0,0.00011912,2]
[361139569,1747301655259,400.0,0.00011363,2]
[361139570,1747301655378,400.0,0.00011364,2]
[361139571,1747301655605,400.0,0.00011638,2]
[361139572,1747301655703,400.0,0.00011637,2]
[361139573,1747301655811,400.0,0.00011999,2]
[361139574,1747301655855,400.0,0.00011912,2]
[361139575,1747301655930,400.0,0.00011911,2]
[361139576,1747301656493,336.72,0.00021945,30]
[361139577,1747301658718,1702.16,0.00011364,2]
[361139578,1747301658960,1702.16,0.00011638,2]
[361139579,1747301659211,1702.16,0.00011912,2]
[361139580,1747301660572,400.0,0.00011381,2]
[361139581,1747301661703,400.0,0.00011655,2]
[361139582,1747301662091,419.39426329,0.00011929,2]
[361139583,1747301662774,513.18,0.00011636,2]
[361139584,1747301663063,400.0,0.00011636,2]
[361139585,1747301663366,400.0,0.0001191,2]
[361139586,1747301666603,400.0,0.00011364,2]
[361139587,1747301666874,400.0,0.00011638,2]
[361139588,1747301667116,400.0,0.00011912,2]
[361139589,1747301668009,616.74,0.00011363,2]
[361139590,1747301668454,616.74,0.00011637,2]
[361139591,1747301668513,616.74,0.00011911,2]
[361139592,1747301668819,400.0,0.00011381,2]
[361139593,1747301669062,400.0,0.00011655,2]
[361139594,1747301669308,400.0,0.00011929,2]
[361139595,1747301669712,400.0,0.00011636,2]
[361139596,1747301669971,400.0,0.0001191,2]
[361139597,1747301670590,457.21,0.00011636,2]
[361139598,1747301670840,457.21,0.0001191,2]
[361139599,1747301672078,400.0,0.00011364,2]
[361139600,1747301672111,400.0,0.00011636,2]
[361139601,1747301672331,400.0,0.0001191,2]
[361139602,1747301673526,400.0,0.00011364,2]
[361139603,1747301676625,400.0,0.00011381,2]
[361139604,1747301677001,400.0,0.00011655,2]
[361139605,1747301677242,400.0,0.00011929,2]
[361139606,1747301677436,400.0,0.00011364,2]
[361139607,1747301677681,400.0,0.00011638,2]
[361139608,1747301678256,400.0,0.00011912,2]
[361139609,1747301678801,578.18,0.00011363,2]
[361139610,1747301679129,578.18,0.00011637,2]
[361139611,1747301679363,578.18,0.00011911,2]
[361139612,1747301680829,1670.45,0.00011364,2]
[361139613,1747301681107,1670.45,0.00011638,2]
[361139614,1747301681371,1670.45,0.00011912,2]
[361139615,1747301681437,35473.4,0.00011363,2]
[361139616,1747301681693,35473.4,0.00011637,2]
[361139617,1747301681925,35473.4,0.00011911,2]
[361139618,1747301682979,2122.0510214,0.00011939,2]
[361139619,1747301683337,421.73,0.00011364,2]
[361139620,1747301683586,421.73,0.00011638,2]
[361139621,1747301683820,421.73,0.00011912,2]
[361139622,1747301687219,668.57,0.00011364,2]
[361139623,1747301687466,668.57,0.00011638,2]
[361139624,1747301687689,400.0,0.00011381,2]
[361139625,1747301687767,668.57,0.00011912,2]
[361139626,1747301688167,400.0,0.00011655,2]
[361139627,1747301688235,1235.82,0.00011364,2]
[361139628,1747301688272,400.0,0.00011929,2]
[361139629,1747301688378,1235.82,0.00011638,2]
[361139630,1747301688623,1235.82,0.00011912,2]
[361139631,1747301691856,500.99567902,0.00011636,2]
[361139632,1747301691933,3766.36,0.00011364,2]
[361139633,1747301692178,3766.36,0.00011638,2]
[361139634,1747301692417,3766.36,0.00011912,2]
[361139635,1747301695303,400.0,0.00011381,2]
[361139636,1747301695560,400.0,0.00011655,2]
[361139637,1747301695811,400.0,0.00011929,2]
[361139638,1747301696544,776.81,0.00011364,2]
[361139639,1747301696592,872.66,0.00011364,2]
[361139640,1747301696827,776.81,0.00011638,2]
[361139641,1747301696867,872.66,0.00011638,2]
[361139642,1747301697136,776.81,0.00011912,2]
[361139643,1747301697171,872.66,0.00011912,2]
[361139644,1747301698496,1352.65,0.00011364,2]
[361139645,1747301698667,494.99,0.00011636,2]
[361139646,1747301698751,1352.65,0.00011638,2]
[361139647,1747301698803,1192.68,0.00011381,2]
[361139648,1747301699600,1352.65,0.00011912,2]
[361139649,1747301699635,1192.68,0.00011655,2]
[361139650,1747301699716,1192.68,0.00011929,2]
[361139651,1747301700572,10369.17,0.00011364,2]
[361139652,1747301700803,10369.17,0.00011638,2]
[361139653,1747301701085,10369.17,0.00011912,2]
[361139654,1747301703907,847.24,0.00011363,2]
[361139655,1747301704169,847.24,0.00011637,2]
[361139656,1747301704452,847.24,0.00011911,2]
[361139657,1747301705779,1350.53,0.00011363,2]
[361139658,1747301706087,1350.53,0.00011637,2]
[361139659,1747301706373,1350.53,0.00011911,2]
[361139660,1747301706983,857.38,0.00011364,2]
[361139661,1747301707212,857.38,0.00011638,2]
[361139662,1747301707462,857.38,0.00011912,2]
[361139663,1747301707948,1204.12,0.00011999,2]
[361139664,1747301708266,609.44,0.00011364,2]
[361139665,1747301708403,428.03,0.00011364,2]
[361139666,1747301708516,609.44,0.00011638,2]
[361139667,1747301708751,609.44,0.00011912,2]
[361139668,1747301709252,408.09113586,0.00011636,2]
[361139669,1747301710260,400.0,0.00011636,2]
[361139670,1747301710360,400.0,0.00011636,2]
[361139671,1747301710510,400.0,0.0001191,2]
[361139672,1747301710592,400.0,0.0001191,2]
[361139673,1747301711391,400.0,0.00011636,2]
[361139674,1747301712395,400.0,0.00011363,2]
[361139675,1747301713212,880.0,0.00011569,2]
[361139676,1747301714076,400.0,0.00011364,2]
[361139677,1747301714311,400.0,0.00011638,2]
[361139678,1747301714663,456.17,0.00011364,2]
[361139679,1747301715234,456.17,0.00011638,2]
[361139680,1747301715477,456.17,0.00011912,2]
[361139681,1747301715715,400.0,0.00011636,2]
[361139682,1747301715960,400.0,0.0001191,2]
[361139683,1747301716064,4380.32,0.00011364,2]
[361139684,1747301716306,4380.32,0.00011638,2]
[361139685,1747301716459,400.0,0.00011363,2]
[361139686,1747301716577,4380.32,0.00011912,2]
[361139687,1747301717278,513.83727148,0.00011636,2]
[361139688,1747301717344,400.0,0.00011636,2]
[361139689,1747301717614,400.0,0.0001191,2]
[361139690,1747301718400,601.36,0.00011363,2]
[361139691,1747301718932,838.0,0.00011569,2]
[361139692,1747301719009,601.36,0.00011637,2]
[361139693,1747301719283,601.36,0.00011911,2]
[361139694,1747301719530,400.0,0.00011636,2]
[361139695,1747301719726,400.0,0.00011381,2]
[361139696,1747301719791,400.0,0.0001191,2]
[361139697,1747301720576,1144.43,0.00011364,2]
[361139698,1747301720622,1144.43,0.00011638,2]
[361139699,1747301720892,1144.43,0.00011912,2]
[361139700,1747301721565,400.0,0.00011364,2]
[361139701,1747301721814,400.0,0.00011638,2]
[361139702,1747301722163,500.0,0.00011636,2]
[361139703,1747301722407,500.0,0.00011649,2]
[361139704,1747301722690,500.0,0.00011657,2]
[361139705,1747301722956,500.0,0.00011911,2]
[361139706,1747301723212,500.0,0.00011929,2]
[361139707,1747301723247,400.0,0.00011363,2]
[361139708,1747301723491,503.04200351,0.00011999,2]
[361139709,1747301723528,400.0,0.00011637,2]
[361139710,1747301726112,400.0,0.00011364,2]
[361139711,1747301726152,6607.5,0.00011364,2]
[361139712,1747301726352,472.61,0.00011638,2]
[361139713,1747301726403,6607.5,0.00011638,2]
[361139714,1747301726654,6607.5,0.00011912,2]
[361139715,1747301727383,648.52,0.00011636,2]
[361139716,1747301727645,648.52,0.0001191,2]
[361139717,1747301727683,400.0,0.00011381,2]
[361139718,1747301727729,441.760661,0.00010958,2]
[361139719,1747301727765,400.0,0.00011363,2]
[361139720,1747301727890,1697.6408171,0.00011939,2]
[361139721,1747301727927,400.0,0.00011655,2]
[361139722,1747301727985,441.760661,0.00011114,2]
[361139723,1747301728161,400.0,0.00011929,2]
[361139724,1747301728279,400.0,0.00011364,2]
[361139725,1747301728315,441.760661,0.00011116,2]
[361139726,1747301728547,400.0,0.00011638,2]
[361139727,1747301728606,441.760661,0.00011227,2]
[361139728,1747301728795,157.6,0.00011912,2]
[361139729,1747301729350,441.760661,0.00011388,2]
[361139730,1747301729392,1000.0,0.00011337,2]
[361139731,1747301729499,400.0,0.00011999,2]
[361139732,1747301729674,441.760661,0.0001139,2]
[361139733,1747301729723,5941.0,0.00011569,2]
[361139734,1747301730131,400.0,0.00011364,2]
[361139735,1747301730375,400.0,0.00011638,2]
[361139736,1747301731088,400.0,0.00011364,2]
[361139737,1747301731146,450.0,0.00011636,2]
[361139738,1747301731199,400.0,0.00011638,2]
[361139739,1747301731248,487.39,0.00011363,2]
[361139740,1747301731300,400.0,0.00011912,2]
[361139741,1747301731353,487.39,0.00011637,2]
[361139742,1747301731506,487.39,0.00011911,2]
[361139743,1747301732863,400.0,0.00011363,2]
[361139744,1747301733116,400.0,0.00011637,2]
[361139745,1747301733418,400.0,0.00011911,2]
[361139746,1747301734407,713.21,0.00011364,2]
[361139747,1747301734659,713.21,0.00011638,2]
[361139748,1747301734903,713.21,0.00011912,2]
[361139749,1747301735607,3436.22,0.00011363,2]
[361139750,1747301735846,3436.22,0.00011637,2]
[361139751,1747301735915,400.0,0.00011636,2]
[361139752,1747301736012,1000.0,0.00011636,2]
[361139753,1747301736112,3436.22,0.00011911,2]
[361139754,1747301736203,1147.0,0.00011569,2]
[361139755,1747301741948,400.0,0.00011636,2]
[361139756,1747301742184,472.33078964,0.0001191,2]
[361139757,1747301742369,516.91,0.00011364,2]
[361139758,1747301742608,516.91,0.00011638,2]
[361139759,1747301742648,400.0,0.00011636,2]
[361139760,1747301742870,687.45,0.00011381,2]
[361139761,1747301743223,687.45,0.00011655,2]
[361139762,1747301743348,516.91,0.00011912,2]
[361139763,1747301743475,687.45,0.00011929,2]
[361139764,1747301744746,400.0,0.00011636,2]
[361139765,1747301745014,400.0,0.0001191,2]
[361139766,1747301745731,400.0,0.00011999,2]
[361139767,1747301746644,503.55,0.00011363,2]
[361139768,1747301746698,404.89,0.00011381,2]
[361139769,1747301746886,503.55,0.00011637,2]
[361139770,1747301746954,404.89,0.00011655,2]
[361139771,1747301747118,503.55,0.00011911,2]
[361139772,1747301747191,404.89,0.00011929,2]
[361139773,1747301748034,5480.940802,0.00011959,2]
[361139774,1747301748244,400.0,0.00011999,2]
[361139775,1747301748386,400.0,0.00011636,2]
[361139776,1747301749812,400.0,0.00011636,2]
[361139777,1747301751467,852.4,0.00011364,2]
[361139778,1747301751715,852.4,0.00011638,2]
[361139779,1747301752171,400.0,0.00011636,2]
[361139780,1747301752206,852.4,0.00011912,2]
[361139781,1747301752639,650.11,0.00011363,2]
[361139782,1747301752804,650.11,0.00011637,2]
[361139783,1747301753060,650.11,0.00011911,2]
[361139784,1747301754968,400.0,0.00011381,2]
[361139785,1747301756736,248.483397,0.00010958,2]
[361139786,1747301756791,400.0,0.00011636,2]
[361139787,1747301757498,629.8,0.00011636,2]
[361139788,1747301757533,400.0,0.00011636,2]
[361139789,1747301757739,629.8,0.0001191,2]
[361139790,1747301758086,210.32336114,0.0001191,2]
[361139805,1747302011543,642.37,8.72e-05,2]
[361139806,1747302023310,150.0,0.00010539,7]
[361139807,1747302068326,391.936479,7.945e-05,2]
[361139808,1747302167728,167.93793002,7.5e-07,2]
[361139810,1747302287282,184.56,9.708e-05,2]
[361139811,1747302315329,9832.07,9.806e-05,2]
[361139812,1747302331766,4349.41,9.714e-05,2]
[361139813,1747302342923,202.38,9.701e-05,2]
[361140126,1747302407902,168.96,7.75e-05,2]
[361140127,1747302408107,168.96,8.718e-05,2]
[361140128,1747302408317,168.96,9.687e-05,2]
[361140129,1747302450687,200.0,9.679e-05,2]
[361140130,1747302450893,200.0,9.679e-05,2]
[361140131,1747302455150,479.99,9.679e-05,2]
[361140132,1747302455391,-216.3615544,9.95e-05,2]
[361140133,1747302457174,500.0,9.679e-05,2]
[361140134,1747302458899,-205.0,9.95e-05,2]
[361140135,1747302462718,-157.25,9.95e-05,2]
[361140137,1747302562888,-165.02,9.924e-05,2]
[361140138,1747302565982,-298.89066636,9.924e-05,2]
[361140139,1747302567456,-237.21273833,9.924e-05,2]
[361140140,1747302575815,-165.34490732,9.924e-05,2]
[361140141,1747302577616,-152.47781258,9.924e-05,2]
[361140142,1747302581298,-174.60775082,9.924e-05,2]
[361140143,1747302586707,-3.22331259,9.924e-05,2]
[361140144,1747302593864,250.0,9.641e-05,2]
[361140155,1747302631522,-200.0,9.975e-05,2]
[361140156,1747302631532,-250.0,9.98e-05,2]
[361140157,1747302631541,-200.0,9.98e-05,2]
[361140158,1747302631551,-224.1247801,9.986e-05,2]
[361140159,1747302631560,-450.0,0.0001,2]
[361140160,1747302631570,-238.85622132,0.0001,2]
[361140161,1747302631579,-224.12478012,0.0001,2]
[361140162,1747302631589,-224.1247801,0.00010072,2]
[361140163,1747302631598,-300.0,0.00010144,2]
[361140164,1747302631607,-1200.0,0.00010144,2]
[361140165,1747302631617,-300.0,0.00010144,2]
[361140166,1747302631626,-561.32,0.00010145,2]
[361140167,1747302631635,-5240.29,0.00010145,2]
[361140168,1747302631645,-5240.29,0.00010148,2]
[361140169,1747302631655,-5240.29,0.0001015,2]
[361140170,1747302631664,-5240.29,0.00010153,2]
[361140171,1747302631674,-5240.29,0.00010156,2]
[361140172,1747302631684,-5240.29,0.00010158,2]
[361140173,1747302631694,-5240.29,0.00010161,2]
[361140174,1747302631702,-5240.29,0.00010164,2]
[361140175,1747302631712,-150.0,0.00010165,2]
[361140176,1747302631722,-5240.29,0.00010166,2]
[361140177,1747302631731,-5240.29,0.00010169,2]
[361140178,1747302631740,-5240.29,0.00010172,2]
[361140179,1747302631749,-5240.29,0.00010174,2]
[361140180,1747302631759,-5240.29,0.00010177,2]
[361140181,1747302631768,-5240.29,0.0001018,2]
[361140182,1747302631777,-5240.29,0.00010182,2]
[361140183,1747302631787,-5240.29,0.00010185,2]
[361140184,1747302631796,-5240.29,0.00010188,2]
[361140185,1747302631805,-5240.29,0.0001019,2]
[361140186,1747302631815,-5240.29,0.00010193,2]
[361140187,1747302631824,-891.06651248,0.00010196,2]
[361140188,1747302631836,-1019.87275816,0.00010196,2]
[361140190,1747302631853,-3329.35072936,0.00010196,2]
[361140191,1747302631862,-170.31,0.00010295,2]
[361140193,1747302631871,-566.33927064,0.00010319,2]
[361140194,1747302631892,-1017.8,0.00010319,2]
[361140195,1747302631909,-1205.10072936,0.00010319,2]